bitfinex/quotes_SOLUSD_20240824
["timestamp","ask_amount","ask_price","bid_price","bid_amount"]
[1724482731253,45.0,154.38,154.32,0.8385691]
[1724482731459,45.0,154.38,154.32,11.09180368]
[1724482732971,45.0,154.38,154.32,0.8385691]
[1724482733176,45.0,154.38,154.32,11.09180368]
[1724482735080,45.0,154.38,154.32,0.8385691]
[1724482735385,45.0,154.38,154.32,11.09180368]
[1724482738782,45.0,154.38,154.32,0.8385691]
[1724482742186,15.5909,154.37,154.32,0.8385691]
[1724482748693,45.0,154.36,154.32,0.8385691]
[1724482751188,35.0609,154.37,154.32,0.8385691]
[1724482758101,45.0,154.36,154.32,0.8385691]
[1724482765601,45.0,154.37,154.32,0.8385691]
[1724482765982,45.0,154.38,154.32,0.8385691]
[1724482766985,20.0,154.39,154.32,0.8385691]
[1724482767296,20.0,154.39,154.33,10.25323458]
[1724482767482,20.0,154.4,154.33,10.25323458]
[1724482768524,45.12549,154.39,154.33,10.25323458]
[1724482769184,45.12549,154.39,154.32,0.8385691]
[1724482769384,45.12549,154.39,154.33,10.25323458]
[1724482772001,45.0,154.39,154.35,10.25323458]
[1724482772205,6.4757,154.43,154.35,10.25323458]
[1724482772414,26.4759,154.42,154.32,0.8385691]
[1724482772596,26.4759,154.42,154.33,10.25323458]
[1724482773108,6.4759,154.42,154.33,10.25323458]
[1724482773500,45.12549,154.41,154.33,10.25323458]
[1724482774403,55.37872458,154.41,154.33,10.25323458]
[1724482775516,45.12549,154.41,154.33,10.25323458]
[1724482787501,45.12549,154.41,154.35,10.25323458]
[1724482789920,45.12549,154.41,154.34,10.25323458]
[1724482792739,45.12549,154.41,154.32,11.09180368]
[1724482794509,74.84872458,154.41,154.32,0.8385691]
[1724482794707,26.60219,154.4,154.32,0.8385691]
[1724482795026,45.12549,154.39,154.32,0.8385691]
[1724482797330,19.47,154.36,154.32,0.8385691]
[1724482797625,0.25098,154.35,154.32,0.8385691]
[1724482797826,65.25098,154.35,154.32,0.8385691]
[1724482798216,91.20018,154.35,154.32,0.8385691]
[1724482798419,6.4793,154.34,154.32,0.8385691]
[1724482798602,45.12549,154.33,154.32,0.8385691]
[1724482799010,45.0,154.33,154.32,0.8385691]
[1724482799216,26.60429,154.35,154.32,0.8385691]
[1724482799417,45.0,154.34,154.32,0.8385691]
[1724482800313,20.0,154.35,154.32,0.8385691]
[1724482800529,20.0,154.36,154.32,0.8385691]
[1724482800732,19.47,154.41,154.33,10.25323458]
[1724482800926,6.4891,154.42,154.33,10.25323458]
[1724482801129,6.76615999,154.43,154.35,10.25323458]
[1724482802834,34.593,154.44,154.35,10.25323458]
[1724482803337,6.4754,154.43,154.35,10.25323458]
[1724482804038,20.0,154.42,154.35,10.25323458]
[1724482805738,45.0,154.41,154.35,10.25323458]
[1724482805939,45.0,154.41,154.37,10.25323458]
[1724482808042,45.0,154.41,154.35,10.25323458]
[1724482808342,45.0,154.42,154.35,10.25323458]
[1724482808546,0.12549,154.41,154.35,10.25323458]
[1724482809249,0.25098,154.41,154.33,10.25323458]
[1724482810549,45.0,154.42,154.34,22.6566]
[1724482810849,26.23346618,154.45,154.37,10.25323458]
[1724482811034,0.12549,154.44,154.37,10.25323458]
[1724482811537,10.25323458,154.46,154.37,10.25323458]
[1724482812051,20.0,154.45,154.37,10.25323458]
[1724482812953,45.12549,154.44,154.37,10.25323458]
[1724482813630,45.12549,154.44,154.34,22.6566]
[1724482813824,0.12549,154.43,154.35,10.25323458]
[1724482816349,55.37872458,154.44,154.35,10.25323458]
[1724482818437,55.37872458,154.44,154.34,22.6566]
[1724482818438,61.85392458,154.44,154.34,22.6566]
[1724482818639,20.0,154.43,154.35,10.25323458]
[1724482818834,45.12549,154.42,154.35,10.25323458]
[1724482820742,45.12549,154.42,154.34,22.6566]
[1724482820936,45.12549,154.42,154.35,10.25323458]
[1724482822340,45.0,154.42,154.35,10.25323458]
[1724482824363,45.0,154.42,154.34,22.6566]
[1724482824652,0.12549,154.41,154.34,22.6566]
[1724482825038,0.25098,154.41,154.34,22.6566]
[1724482825560,0.25098,154.41,154.35,6.08450254]
[1724482827149,0.25098,154.41,154.34,16.3667]
[1724482827750,26.72718,154.41,154.34,16.3667]
[1724482827932,45.0,154.4,154.34,16.3667]
[1724482828141,0.12549,154.39,154.34,16.3667]
[1724482828347,0.12549,154.39,154.32,0.8385691]
[1724482828556,20.12549,154.39,154.33,6.08335166]
[1724482828736,45.0,154.38,154.33,6.08335166]
[1724482829160,22.793,154.43,154.33,16.33658624]
[1724482829353,20.0,154.42,154.33,10.25323458]
[1724482830676,45.12549,154.41,154.33,10.25323458]
[1724482832471,45.12549,154.41,154.32,0.8385691]
[1724482832654,45.12549,154.41,154.33,10.25323458]
[1724482835252,51.60169,154.41,154.33,10.25323458]
[1724482836080,45.12549,154.41,154.33,10.25323458]
[1724482841568,6.3087,154.45,154.35,10.25323458]
[1724482842462,6.3087,154.45,154.35,6.0163]
[1724482842657,20.0,154.44,154.36,10.25323458]
[1724482843067,45.0,154.43,154.36,10.25323458]
[1724482846479,44.68990701,154.43,154.36,10.25323458]
[1724482861201,20.0,154.44,154.38,10.25323458]
[1724482861374,19.47,154.48,154.4,10.25323458]
[1724482862295,25.9434,154.48,154.4,10.25323458]
[1724482862681,65.25098,154.47,154.4,10.25323458]
[1724482865972,45.12549,154.48,154.4,16.26793458]
[1724482866174,45.12549,154.48,154.4,6.0147]
[1724482867008,45.12549,154.48,154.41,10.25323458]
[1724482869275,45.12549,154.48,154.4,6.0147]
[1724482871688,45.0,154.48,154.4,6.0147]
[1724482872204,20.0,154.49,154.41,10.25323458]
[1724482872787,20.0,154.5,154.41,10.25323458]
[1724482873781,45.0,154.49,154.41,10.25323458]
[1724482874212,55.25323458,154.49,154.4,6.0147]
[1724482878490,55.25323458,154.49,154.41,10.25323458]
[1724482878691,45.0,154.49,154.41,10.25323458]
[1724482880717,20.0,154.5,154.41,10.25323458]
[1724482881987,10.25323458,154.51,154.41,10.25323458]
[1724482882287,45.0,154.5,154.42,16.3588]
[1724482882689,10.25323458,154.51,154.43,10.25323458]
[1724482882885,6.3031,154.53,154.43,10.25323458]
[1724482882886,10.25323458,154.53,154.43,10.25323458]
[1724482883099,65.12549,154.52,154.43,10.25323458]
[1724482887392,10.25323458,154.51,154.43,10.25323458]
[1724482887914,45.0,154.5,154.42,16.3588]
[1724482888099,10.25323458,154.51,154.42,16.3588]
[1724482888300,45.0,154.5,154.42,16.3588]
[1724482895114,45.0,154.51,154.42,16.3588]
[1724482897532,45.0,154.51,154.43,10.25323458]
[1724482899609,45.0,154.51,154.43,16.34321251]
[1724482902133,45.0,154.51,154.44,6.3603]
[1724482902316,45.12549,154.52,154.44,6.3603]
[1724482902913,45.12549,154.52,154.44,12.45038088]
[1724482903434,10.25323458,154.51,154.44,12.45027952]
[1724482903634,45.12549,154.5,154.44,6.3603]
[1724482903834,45.12549,154.5,154.44,12.45027952]
[1724482904018,45.12549,154.5,154.43,6.08997952]
[1724482904019,10.25323458,154.49,154.43,6.08997952]
[1724482904335,45.12549,154.48,154.42,16.3588]
[1724482904642,55.25323458,154.48,154.43,6.08913065]
[1724482904822,55.25323458,154.48,154.42,16.3588]
[1724482905935,55.25323458,154.48,154.43,6.0884734]
[1724482906107,55.25323458,154.48,154.42,16.3588]
[1724482906307,55.25323458,154.48,154.43,6.08847474]
[1724482906524,55.25323458,154.48,154.42,16.3588]
[1724482906730,55.25323458,154.48,154.43,6.0884734]
[1724482906939,55.25323458,154.48,154.42,16.3588]
[1724482907114,55.25323458,154.48,154.43,6.0884734]
[1724482907314,55.25323458,154.48,154.42,16.3588]
[1724482907515,55.25323458,154.48,154.43,6.08847474]
[1724482907817,55.25323458,154.48,154.42,16.3588]
[1724482908017,55.25323458,154.48,154.43,6.0884734]
[1724482908223,55.25323458,154.48,154.42,16.3588]
[1724482909037,10.25323458,154.46,154.38,16.398]
[1724482909243,45.0,154.45,154.39,6.08625897]
[1724482909538,45.0,154.45,154.4,6.08625897]
[1724482909731,45.0,154.45,154.41,6.08625897]
[1724482909927,45.0,154.45,154.38,16.398]
[1724482910132,45.0,154.45,154.39,6.08692852]
[1724482910325,45.0,154.45,154.4,6.08692852]
[1724482910519,45.0,154.45,154.38,16.398]
[1724482910927,45.0,154.45,154.39,6.08686304]
[1724482911323,45.0,154.45,154.39,12.17372608]
[1724482911637,45.0,154.45,154.4,6.08686304]
[1724482911842,45.0,154.45,154.39,6.08686304]
[1724482912738,45.0,154.45,154.38,16.398]
[1724482913744,45.0,154.45,154.38,26.65123458]
[1724482913949,45.0,154.46,154.38,26.65123458]
[1724482919242,45.0,154.46,154.38,16.398]
[1724482919243,55.25323458,154.46,154.38,16.398]
[1724482919445,0.12549,154.45,154.38,16.398]
[1724482920349,45.0,154.46,154.38,26.65123458]
[1724482921526,45.0,154.47,154.38,26.65123458]
[1724482921728,20.0,154.46,154.38,26.65123458]
[1724482922251,45.0,154.47,154.38,26.65123458]
[1724482924637,45.0,154.47,154.39,6.2945]
[1724482924823,21.3174,154.51,154.4,10.25323458]
[1724482925029,10.25323458,154.5,154.4,10.25323458]
[1724482925337,20.0,154.49,154.4,10.25323458]
[1724482926837,45.0,154.48,154.4,10.25323458]
[1724482927022,0.12549,154.47,154.39,6.2945]
[1724482928030,55.25323458,154.48,154.39,6.2945]
[1724482928736,45.0,154.48,154.39,6.2945]
[1724482928936,0.12549,154.47,154.39,6.2945]
[1724482929343,55.25323458,154.48,154.39,6.2945]
[1724482929550,0.12549,154.47,154.39,6.2945]
[1724482930373,45.0,154.48,154.39,6.2945]
[1724482930531,55.25323458,154.48,154.39,6.2945]
[1724482932555,45.0,154.48,154.39,6.2945]
[1724482935267,30.25323458,154.49,154.39,6.2945]
[1724482938054,30.25323458,154.49,154.4,10.25323458]
[1724482938565,30.25323458,154.49,154.41,16.0024]
[1724482942751,20.0,154.49,154.41,16.0024]
[1724482942968,20.0,154.5,154.41,16.0024]
[1724482943240,45.12549,154.49,154.41,16.0024]
[1724482945384,20.0,154.5,154.41,16.0024]
[1724482945567,20.0,154.5,154.42,10.25323458]
[1724482946556,10.25323458,154.53,154.44,10.25323458]
[1724482946740,45.0,154.52,154.42,10.25323458]
[1724482946943,10.25323458,154.51,154.41,16.0024]
[1724482947141,45.0,154.5,154.41,16.0024]
[1724482947546,10.25323458,154.5,154.41,16.0024]
[1724482947763,45.0,154.49,154.41,16.0024]
[1724482954861,45.0,154.49,154.41,26.25563458]
[1724482955072,0.12549,154.51,154.41,26.25563458]
[1724482955282,22.1854,154.55,154.45,10.25323458]
[1724482955479,32.43863458,154.55,154.45,10.25323458]
[1724482955807,28.6561,154.55,154.45,10.25323458]
[1724482956092,10.25323458,154.54,154.45,10.25323458]
[1724482956295,22.1854,154.55,154.45,10.25323458]
[1724482956488,10.25323458,154.54,154.45,10.25323458]
[1724482956792,65.12549,154.53,154.45,10.25323458]
[1724482961280,65.12549,154.53,154.44,16.5499]
[1724482961693,10.25323458,154.52,154.44,16.5499]
[1724482961883,20.0,154.53,154.45,10.25323458]
[1724482962062,10.25323458,154.55,154.45,10.25323458]
[1724482962272,20.0,154.54,154.45,10.25323458]
[1724482962473,30.25323458,154.54,154.45,10.25323458]
[1724482962876,30.25323458,154.54,154.44,16.67539]
[1724482963077,30.25323458,154.54,154.45,10.37872458]
[1724482963393,20.0,154.54,154.45,10.37872458]
[1724482963566,10.25323458,154.54,154.45,10.37872458]
[1724482963764,20.0,154.53,154.44,16.5499]
[1724482964192,20.0,154.53,154.45,16.49053458]
[1724482964500,6.4702,154.56,154.45,16.49053458]
[1724482964501,30.25323458,154.55,154.45,16.49053458]
[1724482964678,45.0,154.54,154.45,16.49053458]
[1724482964881,20.0,154.53,154.45,16.49053458]
[1724482965403,45.0,154.54,154.45,16.49053458]
[1724482965581,45.0,154.54,154.46,15.4582]
[1724482967069,20.0,154.55,154.46,15.4582]
[1724482967265,20.0,154.55,154.47,10.25323458]
[1724482967498,20.0,154.57,154.47,10.25323458]
[1724482967788,45.12549,154.56,154.47,10.25323458]
[1724482967996,20.0,154.55,154.47,10.25323458]
[1724482968194,20.0,154.55,154.46,15.4582]
[1724482968405,20.0,154.55,154.47,10.25323458]
[1724482968693,45.12549,154.56,154.46,15.4582]
[1724482968694,0.12549,154.58,154.5,21.6955]
[1724482968894,75.50421458,154.59,154.5,21.6955]
[1724482969101,30.25323458,154.59,154.5,21.6955]
[1724482969276,10.25323458,154.61,154.51,10.25323458]
[1724482970295,19.47,154.6,154.51,10.25323458]
[1724482970612,20.12549,154.59,154.51,10.25323458]
[1724482970898,0.12549,154.59,154.51,10.25323458]
[1724482971696,45.12549,154.59,154.51,10.25323458]
[1724482980212,51.59419,154.59,154.5,21.6955]
[1724482980386,0.12549,154.58,154.5,21.6955]
[1724482980698,36.84792458,154.58,154.5,21.6955]
[1724482981013,45.12549,154.57,154.5,21.6955]
[1724482983594,45.12549,154.57,154.5,31.94873458]
[1724482984395,51.59519,154.57,154.5,21.6955]
[1724482985418,30.25323458,154.56,154.5,15.4582]
[1724482985616,45.12549,154.55,154.5,15.4582]
[1724482987824,10.25323458,154.53,154.43,16.2205]
[1724482988012,65.25098,154.52,154.43,26.47373458]
[1724482988624,65.12549,154.52,154.43,26.47373458]
[1724482990096,71.59709,154.52,154.43,26.47373458]
[1724482992509,6.59759,154.51,154.43,26.47373458]
[1724482992709,45.12549,154.5,154.43,26.47373458]
[1724482993610,0.12549,154.5,154.43,26.47373458]
[1724482999710,0.12549,154.5,154.43,16.2205]
[1724483001134,20.12549,154.5,154.43,16.2205]
[1724483001339,45.0,154.49,154.43,16.2205]
[1724483004522,20.12549,154.5,154.43,16.2205]
[1724483007126,45.0,154.49,154.43,16.2205]
[1724483008425,0.12549,154.48,154.43,16.2205]
[1724483008631,0.25098,154.48,154.43,16.2205]
[1724483015845,45.0,154.49,154.43,16.2205]
[1724483020745,64.47,154.49,154.43,16.2205]
[1724483020953,45.0,154.49,154.43,16.2205]
[1724483032146,45.0,154.49,154.44,6.09026563]
[1724483032358,45.0,154.49,154.43,16.2205]
[1724483037975,55.25323458,154.49,154.43,16.2205]
[1724483039368,61.72613458,154.49,154.43,16.2205]
[1724483041041,55.25323458,154.49,154.43,16.2205]
[1724483041938,45.0,154.49,154.43,16.2205]
[1724483042253,55.25323458,154.49,154.43,16.2205]
[1724483042992,10.25323458,154.47,154.43,16.2205]
[1724483045466,0.25098,154.48,154.43,16.2205]
[1724483046348,0.12549,154.48,154.43,16.2205]
[1724483046766,45.0,154.49,154.43,16.2205]
[1724483047172,45.0,154.5,154.43,16.2205]
[1724483047473,20.12549,154.49,154.43,16.2205]
[1724483047662,45.0,154.48,154.43,16.2205]
[1724483049952,0.12549,154.47,154.43,16.2205]
[1724483053676,45.0,154.48,154.43,16.2205]
[1724483056775,19.46,154.56,154.45,10.25323458]
[1724483056979,29.71323458,154.56,154.45,10.25323458]
[1724483058159,6.4708,154.54,154.45,10.25323458]
[1724483058370,65.25098,154.53,154.45,10.25323458]
[1724483060170,65.25098,154.53,154.44,6.3314]
[1724483061871,65.25098,154.53,154.45,10.25323458]
[1724483070199,65.25098,154.53,154.44,6.3314]
[1724483070200,45.0,154.53,154.47,10.25323458]
[1724483070386,25.9296,154.57,154.47,10.25323458]
[1724483070582,20.0,154.56,154.47,10.25323458]
[1724483070791,49.71323458,154.56,154.46,16.5392]
[1724483071476,30.25323458,154.56,154.47,10.25323458]
[1724483071671,45.25098,154.55,154.47,10.25323458]
[1724483071896,20.0,154.54,154.47,10.25323458]
[1724483073014,45.25098,154.55,154.47,10.25323458]
[1724483073187,20.0,154.54,154.47,10.25323458]
[1724483078308,45.12549,154.55,154.47,10.25323458]
[1724483083216,45.0,154.56,154.48,6.3582]
[1724483083408,20.0,154.55,154.48,6.3582]
[1724483084102,45.0,154.56,154.48,6.3582]
[1724483084292,45.0,154.56,154.49,10.25323458]
[1724483084490,45.0,154.57,154.49,10.25323458]
[1724483084812,20.12549,154.56,154.49,11.54760173]
[1724483084984,20.12549,154.56,154.49,10.25323458]
[1724483084985,45.0,154.55,154.49,10.25323458]
[1724483086314,20.12549,154.56,154.49,11.54760174]
[1724483086487,20.0,154.57,154.5,16.0721]
[1724483086693,0.12549,154.58,154.5,16.0721]
[1724483086901,65.25098,154.58,154.5,16.0721]
[1724483089012,65.25098,154.58,154.51,10.25323458]
[1724483089208,15.7327,154.61,154.51,10.25323458]
[1724483089416,10.25323458,154.61,154.52,1.2941316]
[1724483090191,6.4682,154.61,154.52,1.2941316]
[1724483090413,16.72143458,154.61,154.52,1.2941316]
[1724483090603,45.25098,154.6,154.52,1.2941316]
[1724483091316,20.0,154.59,154.52,1.2941316]
[1724483091515,45.0,154.58,154.52,1.2941316]
[1724483091717,45.0,154.58,154.51,10.25323458]
[1724483094706,45.0,154.58,154.53,10.25323458]
[1724483095322,45.0,154.58,154.52,6.3582]
[1724483097127,20.0,154.59,154.52,6.3582]
[1724483097423,45.0,154.58,154.52,6.3582]
[1724483097617,45.0,154.59,154.52,6.3582]
[1724483100421,20.25098,154.58,154.52,6.3582]
[1724483100615,20.12549,154.58,154.52,6.3582]
[1724483100802,20.0,154.58,154.52,6.3582]
[1724483106318,20.0,154.58,154.5,16.0721]
[1724483106514,45.25098,154.57,154.5,16.0721]
[1724483110318,45.25098,154.57,154.5,16.0721]
[1724483114219,45.25098,154.57,154.51,6.09526308]
[1724483115022,45.25098,154.57,154.5,16.0721]
[1724483116337,45.25098,154.57,154.51,6.09501758]
[1724483117554,45.25098,154.57,154.5,16.0721]
[1724483117842,45.25098,154.57,154.51,6.09501891]
[1724483118026,45.25098,154.57,154.51,12.19003649]
[1724483118232,45.25098,154.57,154.51,6.09501758]
[1724483118418,45.25098,154.57,154.51,6.09501891]
[1724483120732,45.25098,154.57,154.51,6.0950173]
[1724483121329,45.25098,154.57,154.5,16.0721]
[1724483121637,45.25098,154.57,154.51,6.09501758]
[1724483121945,45.25098,154.57,154.5,16.0721]
[1724483122133,45.25098,154.57,154.51,6.09501891]
[1724483122325,45.25098,154.57,154.5,16.0721]
[1724483122525,45.25098,154.57,154.51,6.09501891]
[1724483122754,45.25098,154.57,154.5,16.0721]
[1724483123060,45.25098,154.57,154.51,6.09501758]
[1724483123248,45.25098,154.57,154.5,16.0721]
[1724483123551,45.25098,154.57,154.51,6.09507896]
[1724483123725,45.25098,154.57,154.5,16.0721]
[1724483123925,45.25098,154.57,154.51,6.09507896]
[1724483124144,45.25098,154.57,154.5,16.0721]
[1724483124337,45.25098,154.57,154.51,6.09501758]
[1724483124524,45.25098,154.57,154.5,16.0721]
[1724483124726,45.25098,154.57,154.51,6.09501758]
[1724483124932,45.25098,154.57,154.5,16.0721]
[1724483125241,45.25098,154.57,154.51,6.09501891]
[1724483125449,45.25098,154.57,154.5,16.0721]
[1724483125644,45.25098,154.57,154.51,6.09501758]
[1724483125849,45.25098,154.57,154.5,16.0721]
[1724483126034,45.25098,154.57,154.51,6.09501758]
[1724483126233,45.25098,154.57,154.52,6.09501758]
[1724483126551,45.25098,154.57,154.5,16.0721]
[1724483126745,45.25098,154.57,154.51,6.09526556]
[1724483127049,45.25098,154.57,154.52,6.09526556]
[1724483127229,45.25098,154.57,154.5,16.0721]
[1724483127427,45.25098,154.57,154.51,6.09502006]
[1724483127628,45.25098,154.57,154.52,6.09502006]
[1724483127944,45.25098,154.57,154.5,16.0721]
[1724483128141,45.25098,154.57,154.51,6.09501739]
[1724483128544,45.0,154.57,154.5,26.32533458]
[1724483128747,45.0,154.57,154.52,6.09526423]
[1724483129045,45.0,154.57,154.53,6.09550972]
[1724483129247,45.0,154.57,154.52,6.09526423]
[1724483129554,45.0,154.57,154.53,6.09583987]
[1724483129737,45.0,154.57,154.52,6.09526423]
[1724483129933,45.0,154.57,154.53,6.09575786]
[1724483130142,45.0,154.57,154.52,6.09526423]
[1724483130344,45.0,154.57,154.53,6.09581109]
[1724483130550,45.0,154.57,154.52,6.09526423]
[1724483130739,45.0,154.57,154.53,6.09593383]
[1724483130922,45.0,154.57,154.52,6.09526423]
[1724483131128,45.0,154.57,154.53,6.09593383]
[1724483131344,45.0,154.57,154.52,6.09526423]
[1724483131874,45.0,154.57,154.53,6.09551884]
[1724483132035,45.0,154.57,154.52,6.09526423]
[1724483132350,45.0,154.57,154.53,6.09551105]
[1724483132546,45.0,154.57,154.52,6.09526423]
[1724483133433,45.0,154.57,154.53,6.09526502]
[1724483133633,45.0,154.57,154.52,6.09526423]
[1724483133835,45.0,154.57,154.53,6.09526502]
[1724483134059,45.0,154.57,154.52,6.09526423]
[1724483134356,45.0,154.57,154.53,6.09551051]
[1724483134533,45.0,154.57,154.52,6.09526423]
[1724483134730,45.0,154.57,154.53,6.09551184]
[1724483134948,45.0,154.57,154.5,16.0721]
[1724483135150,45.0,154.57,154.51,6.09551184]
[1724483135454,45.0,154.57,154.52,6.09550918]
[1724483135749,45.0,154.57,154.5,16.0721]
[1724483135930,45.0,154.57,154.51,6.09501685]
[1724483136131,45.0,154.57,154.52,6.09501685]
[1724483136348,45.0,154.57,154.5,16.0721]
[1724483136545,45.0,154.57,154.51,6.09507044]
[1724483136859,45.0,154.57,154.5,16.0721]
[1724483136860,45.0,154.57,154.52,6.09507044]
[1724483137062,45.0,154.57,154.5,16.0721]
[1724483137260,45.0,154.57,154.51,6.09501685]
[1724483137458,45.0,154.57,154.52,6.09501685]
[1724483137759,45.0,154.57,154.5,16.0721]
[1724483138069,45.0,154.57,154.51,6.09501952]
[1724483138242,26.13893458,154.56,154.52,6.09501952]
[1724483138442,65.12549,154.55,154.47,6.09262989]
[1724483138650,65.12549,154.55,154.48,6.09262989]
[1724483138867,65.12549,154.55,154.49,6.09340762]
[1724483139049,65.12549,154.55,154.5,6.09340762]
[1724483139242,65.12549,154.55,154.46,25.90613458]
[1724483139772,65.12549,154.55,154.47,6.09334583]
[1724483139974,65.12549,154.55,154.48,6.09334583]
[1724483140269,65.12549,154.55,154.49,6.09334583]
[1724483140437,65.12549,154.55,154.5,6.09334583]
[1724483140642,65.12549,154.55,154.46,25.90613458]
[1724483140843,65.12549,154.55,154.47,6.09341467]
[1724483141038,65.12549,154.55,154.48,6.09341467]
[1724483141261,65.12549,154.55,154.49,6.09341467]
[1724483141466,65.12549,154.55,154.5,6.09341467]
[1724483141764,65.12549,154.55,154.46,15.6529]
[1724483142069,65.12549,154.55,154.47,6.0933474]
[1724483142239,65.12549,154.55,154.48,6.0933474]
[1724483142443,65.12549,154.55,154.46,15.6529]
[1724483142664,65.12549,154.55,154.49,6.09335007]
[1724483142865,65.12549,154.55,154.46,15.6529]
[1724483145776,65.12549,154.55,154.47,10.25323458]
[1724483150252,45.12549,154.55,154.47,10.25323458]
[1724483151071,15.8857,154.56,154.47,10.25323458]
[1724483151269,20.0,154.55,154.47,10.25323458]
[1724483152168,45.0,154.54,154.47,10.25323458]
[1724483153095,45.0,154.54,154.46,15.6529]
[1724483153256,45.0,154.54,154.47,10.25323458]
[1724483159979,45.0,154.54,154.44,6.1012]
[1724483160183,45.0,154.54,154.46,10.25323458]
[1724483162079,45.0,154.54,154.48,10.25323458]
[1724483168373,6.0542,154.55,154.48,10.25323458]
[1724483168775,45.0,154.54,154.48,10.25323458]
[1724483170994,45.0,154.54,154.44,6.1012]
[1724483171197,45.0,154.54,154.46,10.25323458]
[1724483173594,45.0,154.54,154.48,10.25323458]
[1724483177688,45.0,154.54,154.46,10.25323458]
[1724483181414,45.12549,154.53,154.44,10.25323458]
[1724483181586,45.12549,154.53,154.43,8.9197867]
[1724483181789,45.12549,154.53,154.44,10.25323458]
[1724483182494,15.5741,154.52,154.43,8.9197867]
[1724483182698,15.5741,154.52,154.44,10.25323458]
[1724483183903,15.5741,154.52,154.43,8.9197867]
[1724483184095,15.5741,154.52,154.45,10.25323458]
[1724483185987,15.5741,154.52,154.47,10.25323458]
[1724483189520,15.5741,154.52,154.43,8.9197867]
[1724483189715,15.5741,154.52,154.46,10.25323458]
[1724483192516,15.5741,154.52,154.44,0.12549]
[1724483192705,15.5741,154.52,154.47,10.25323458]
[1724483194201,15.5741,154.52,154.44,0.12549]
[1724483194425,15.5741,154.52,154.47,10.25323458]
[1724483197736,45.0,154.51,154.42,15.3231]
[1724483198020,45.0,154.51,154.44,10.25323458]
[1724483198235,15.5741,154.52,154.46,10.25323458]
[1724483199231,15.5741,154.52,154.48,10.25323458]
[1724483199410,6.0542,154.55,154.49,1.29439667]
[1724483199900,6.0542,154.55,154.48,10.25323458]
[1724483200106,6.0542,154.55,154.5,10.25323458]
[1724483201428,6.0542,154.55,154.48,10.25323458]
[1724483213229,6.0542,154.55,154.42,15.3231]
[1724483213432,45.0,154.54,154.43,65.25098]
[1724483213636,45.0,154.54,154.46,10.25323458]
[1724483219944,45.0,154.54,154.48,10.25323458]
[1724483220336,6.0542,154.55,154.5,10.25323458]
[1724483221342,6.0542,154.55,154.51,1.29420507]
[1724483221637,6.0542,154.55,154.5,10.25323458]
[1724483222037,6.0542,154.55,154.43,65.25098]
[1724483222355,6.0542,154.55,154.49,10.25323458]
[1724483223255,6.0542,154.55,154.43,65.25098]
[1724483223553,6.0542,154.55,154.48,10.25323458]
[1724483225145,6.0542,154.55,154.5,10.25323458]
[1724483252049,6.0542,154.55,154.45,6.5608]
[1724483252248,6.0542,154.55,154.48,10.25323458]
[1724483254991,6.0542,154.55,154.5,10.25323458]
[1724483263079,6.0542,154.55,154.51,6.0940923]
[1724483263255,6.0542,154.55,154.52,6.0940923]
[1724483263580,6.0542,154.55,154.5,10.25323458]
[1724483263765,6.0542,154.55,154.51,6.09396951]
[1724483263969,6.0542,154.55,154.5,10.25323458]
[1724483264175,6.0542,154.55,154.51,6.09396951]
[1724483264368,6.0542,154.55,154.5,10.25323458]
[1724483264569,6.0542,154.55,154.51,6.09397084]
[1724483264763,6.0542,154.55,154.5,10.25323458]
[1724483264969,6.0542,154.55,154.51,6.09354106]
[1724483265176,15.5741,154.56,154.52,10.25323458]
[1724483265482,15.5741,154.56,154.54,10.25323458]
[1724483267152,15.5741,154.56,154.52,10.25323458]
[1724483276489,15.5741,154.56,154.46,20.12549]
[1724483276792,15.5741,154.56,154.51,10.25323458]
[1724483276983,15.5741,154.56,154.52,3.80798031]